fUST/lending_fUST_20240912
["ID","MTS","AMOUNT","RATE_DAILY","PERIOD"]
[337801253,1726125062914,-500.0,0.00017808,2]
[337801254,1726125062923,-500.0,0.00017808,2]
[337801255,1726125062933,-7638.2,0.00017808,2]
[337801256,1726125062943,-6438.54,0.00017808,2]
[337801257,1726125062952,-500.0,0.00017808,2]
[337801258,1726125062962,-728.28,0.00017808,2]
[337801259,1726125062972,-500.0,0.00017808,2]
[337801260,1726125062982,-805.69,0.00017808,2]
[337801261,1726125062992,-951.06,0.00017808,2]
[337801262,1726125063002,-1337.49,0.00017808,2]
[337801263,1726125063011,-6829.49,0.00017808,2]
[337801264,1726125063021,-586.91,0.00017808,2]
[337801265,1726125063031,-500.0,0.00017808,2]
[337801266,1726125063041,-539.1,0.00017808,2]
[337801267,1726125063051,-917.76,0.00017808,2]
[337801268,1726125063061,-500.0,0.00017808,2]
[337801269,1726125063071,-500.0,0.00017808,2]
[337801270,1726125063081,-1211.83,0.00017808,2]
[337801271,1726125063091,-515.33,0.00017808,2]
[337801272,1726125063104,-859.49,0.00017808,2]
[337801273,1726125063114,-834.69,0.00017808,2]
[337801274,1726125063124,-500.0,0.00017808,2]
[337801275,1726125063135,-729.48,0.00017808,2]
[337801276,1726125063144,-605.37,0.00017808,2]
[337801277,1726125063154,-1064.49,0.00017808,2]
[337801278,1726125063164,-325.43411415,0.00017808,2]
[337801279,1726125063174,-4198.42,0.00017808,2]
[337801280,1726125063184,-2045.53,0.00017808,2]
[337801281,1726125063193,-500.0,0.00017808,2]
[337801282,1726125063203,-743.67,0.00017808,2]
[337801283,1726125063215,-1332.3,0.00017808,2]
[337801284,1726125063225,-1124.01,0.00017808,2]
[337801285,1726125063235,-800.52,0.00017808,2]
[337801286,1726125063245,-2485.92,0.00017808,2]
[337801287,1726125063255,-180.58,0.00017808,2]
[337801288,1726125063265,-708.19,0.00017808,2]
[337801289,1726125063275,-500.0,0.00017808,2]
[337801290,1726125063284,-500.0,0.00017808,2]
[337801291,1726125063294,-500.0,0.00017808,2]
[337801292,1726125063304,-1000.0,0.00017842,2]
[337801293,1726125063314,-1000.0,0.00017842,2]
[337801294,1726125063324,-1000.0,0.00017842,2]
[337801295,1726125063334,-1000.0,0.00017842,2]
[337801296,1726125063344,-306.48599324,0.00017842,2]
[337801297,1726125063356,-1000.0,0.00017842,2]
[337801298,1726125063365,-226.37111531,0.00017842,2]
[337801299,1726125063375,-420.0,0.00017951,2]
[337801300,1726125063385,-500.0,0.00018,2]
[337801301,1726125063396,-420.0,0.00018069,2]
[337801302,1726125063406,-500.0,0.00018082,2]
[337801303,1726125063415,-500.0,0.00018082,2]
[337801304,1726125063426,-500.0,0.00018082,2]
[337801305,1726125063438,-500.0,0.00018082,2]
[337801306,1726125063448,-500.0,0.00018082,2]
[337801307,1726125063460,-500.0,0.00018082,2]
[337801308,1726125063470,-500.0,0.00018082,2]
[337801309,1726125063479,-500.0,0.00018082,2]
[337801310,1726125063489,-631.84,0.00018082,2]
[337801311,1726125063499,-1043.21,0.00018082,2]
[337801312,1726125063508,-833.03,0.00018082,2]
[337801313,1726125063518,-500.0,0.00018082,2]
[337801314,1726125063528,-504.8,0.00018082,2]
[337801315,1726125063537,-500.0,0.00018082,2]
[337801316,1726125063548,-852.96,0.00018082,2]
[337801317,1726125063558,-397.81310028,0.00018082,2]
[337801318,1726125067967,-500.0,0.00016438,2]
[337801319,1726125067977,-500.0,0.00016438,2]
[337801320,1726125067986,-90.03385713,0.00016438,2]
[337801321,1726125068955,-409.96614287,0.00016438,2]
[337801322,1726125068964,-500.0,0.00016438,2]
[337801323,1726125068974,-500.0,0.00016438,2]
[337801324,1726125068984,-500.0,0.00016438,2]
[337801325,1726125068994,-263.28,0.00016712,2]
[337801326,1726125069004,-500.0,0.00016712,2]
[337801327,1726125069014,-382.93434488,0.00016986,2]
[337801328,1726125069023,-500.0,0.00016986,2]
[337801329,1726125069032,-500.0,0.0001726,2]
[337801330,1726125069042,-102.18689972,0.00018082,2]
[337801331,1726125069052,-500.0,0.00018082,2]
[337801332,1726125069061,-500.0,0.00018082,2]
[337801333,1726125069071,-182.45,0.00018082,2]
[337801334,1726125069081,-500.0,0.00018082,2]
[337801335,1726125069091,-500.0,0.00018082,2]
[337801336,1726125069101,-500.0,0.00018082,2]
[337801337,1726125069111,-500.0,0.00018082,2]
[337801338,1726125069121,-500.0,0.00018082,2]
[337801339,1726125069131,-500.0,0.00018082,2]
[337801340,1726125069140,-500.0,0.00018082,2]
[337801341,1726125069149,-473.88985429,0.00018082,2]
[337801342,1726125069159,-500.0,0.00018082,2]
[337801343,1726125069168,-500.0,0.00018082,2]
[337801344,1726125069178,-500.0,0.00018082,2]
[337801345,1726125069189,-500.0,0.00018082,2]
[337801346,1726125069199,-500.0,0.00018082,2]
[337801347,1726125069209,-500.0,0.00018082,2]
[337801348,1726125069219,-613.82,0.00018082,2]
[337801349,1726125069229,-598.71,0.00018082,2]
[337801350,1726125069239,-505.9,0.00018082,2]
[337801351,1726125069249,-587.94,0.00018082,2]
[337801352,1726125069260,-483.60388746,0.00018082,2]
[337801353,1726125078130,367.82695705,0.00018,6]
[337801354,1726125091089,290.594115,0.00015961,2]
[337801355,1726125096475,500.0047254,0.00028,120]
[337801356,1726125097917,150.0,0.00018,6]
[337801357,1726125119136,500.0,0.00018,6]
[337801358,1726125133774,250.0,0.00015598,2]
[337801359,1726125182553,3749.1403267,0.00015787,2]
[337801361,1726125257923,-254.52223188,0.00016337,2]
[337801362,1726125257953,-300.0,0.00016437,2]
[337801363,1726125257979,-300.0,0.00016437,2]
[337801364,1726125258004,-500.0,0.00016438,2]
[337801365,1726125258030,-262.30106647,0.00016438,2]
[337801366,1726125258054,-501.12663961,0.00016438,2]
[337801367,1726125258081,-500.0,0.00016438,2]
[337801368,1726125258111,-500.0,0.00016438,2]
[337801369,1726125258137,-500.0,0.00016438,2]
[337801370,1726125258161,-500.0,0.00016438,2]
[337801371,1726125258189,-500.0,0.00016438,2]
[337801372,1726125258212,-500.0,0.00016438,2]
[337801373,1726125258235,-500.0,0.00016438,2]
[337801374,1726125258258,-500.0,0.00016438,2]
[337801375,1726125258281,-500.0,0.00016438,2]
[337801376,1726125258305,-500.0,0.00016438,2]
[337801377,1726125258328,-500.0,0.00016438,2]
[337801378,1726125258352,-500.0,0.00016438,2]
[337801379,1726125258375,-434.01232213,0.00016438,2]
[337801380,1726125258399,-500.0,0.00016438,2]
[337801381,1726125258423,-500.0,0.00016438,2]
[337801382,1726125258447,-500.0,0.00016438,2]
[337801383,1726125258470,-500.0,0.00016438,2]
[337801384,1726125258494,-500.0,0.00016438,2]
[337801385,1726125258518,-500.0,0.00016438,2]
[337801386,1726125258544,-500.0,0.00016438,2]
[337801387,1726125258568,-386.61339865,0.00016438,2]
[337801388,1726125258592,-500.0,0.00016438,2]
[337801389,1726125258615,-500.0,0.00016438,2]
[337801390,1726125258641,-500.0,0.00016438,2]
[337801391,1726125258665,-507.9932503,0.00016438,2]
[337801392,1726125258689,-500.0,0.00016438,2]
[337801393,1726125258721,-500.0,0.00016438,2]
[337801394,1726125258747,-500.0,0.00016438,2]
[337801395,1726125258773,-500.0,0.00016438,2]
[337801396,1726125258796,-150.0,0.00016438,2]
[337801397,1726125258819,-500.0,0.00016438,2]
[337801398,1726125259028,-500.0,0.00016438,2]
[337801399,1726125259053,-500.0,0.00016438,2]
[337801400,1726125259077,-500.0,0.00016438,2]
[337801401,1726125259101,-500.0,0.00016438,2]
[337801402,1726125259124,-500.0,0.00016438,2]
[337801403,1726125259149,-500.0,0.00016438,2]
[337801404,1726125259173,-801.44,0.00016438,2]
[337801405,1726125259196,-500.0,0.00016438,2]
[337801406,1726125259220,-500.0,0.00016438,2]
[337801407,1726125259243,-500.0,0.00016438,2]
[337801408,1726125259266,-604.26,0.00016438,2]
[337801409,1726125259289,-589.49515845,0.00016438,2]
[337801410,1726125259314,-500.0,0.00016438,2]
[337801411,1726125259337,-500.0,0.00016438,2]
[337801412,1726125259360,-624.77,0.00016438,2]
[337801413,1726125259382,-500.0,0.00016438,2]
[337801414,1726125259404,-223.95747299,0.00016438,2]
[337801415,1726125259428,-500.0,0.00016438,2]
[337801416,1726125259451,-379.9754847,0.00016438,2]
[337801417,1726125259474,-500.0,0.00016438,2]
[337801418,1726125259499,-500.0,0.00016438,2]
[337801419,1726125259524,-500.0,0.00016438,2]
[337801420,1726125259548,-500.0,0.00016438,2]
[337801421,1726125259572,-500.0,0.00016438,2]
[337801422,1726125259594,-517.52225358,0.00016438,2]
[337801423,1726125259616,-500.0,0.00016438,2]
[337801424,1726125259641,-500.0,0.00016438,2]
[337801425,1726125259667,-515.57,0.00016438,2]
[337801426,1726125259689,-500.0,0.00016438,2]
[337801427,1726125259715,-527.43,0.00016438,2]
[337801428,1726125259737,-472.48,0.00016438,2]
[337801429,1726125259760,-500.0,0.00016438,2]
[337801430,1726125259786,-500.0,0.00016438,2]
[337801431,1726125259810,-500.0,0.00016438,2]
[337801432,1726125259836,-500.0,0.00016438,2]
[337801433,1726125259860,-554.19,0.00016438,2]
[337801434,1726125259883,-500.0,0.00016438,2]
[337801435,1726125259906,-500.0,0.00016438,2]
[337801436,1726125259929,-566.18075257,0.00016438,2]
[337801437,1726125259953,-500.0,0.00016438,2]
[337801438,1726125259975,-500.0,0.00016438,2]
[337801439,1726125259999,-500.0,0.00016438,2]
[337801440,1726125260022,-395.95382375,0.00016438,2]
[337801441,1726125260044,-500.0,0.00016438,2]
[337801442,1726125260066,-500.0,0.00016438,2]
[337801443,1726125260090,-764.16,0.00016438,2]
[337801444,1726125260113,-500.0,0.00016438,2]
[337801445,1726125260136,-500.0,0.00016438,2]
[337801446,1726125260160,-500.0,0.00016438,2]
[337801447,1726125260183,-500.0,0.00016438,2]
[337801448,1726125260206,-500.0,0.00016438,2]
[337801449,1726125260230,-500.0,0.00016438,2]
[337801450,1726125260254,-500.0,0.00016438,2]
[337801451,1726125260278,-500.0,0.00016438,2]
[337801452,1726125260301,-500.0,0.00016438,2]
[337801453,1726125260326,-500.0,0.00016438,2]
[337801454,1726125260349,-500.0,0.00016438,2]
[337801455,1726125260372,-500.0,0.00016438,2]
[337801456,1726125260395,-500.0,0.00016438,2]
[337801457,1726125260419,-500.0,0.00016438,2]
[337801458,1726125260441,-500.0,0.00016438,2]
[337801459,1726125260465,-500.0,0.00016438,2]
[337801460,1726125260488,-500.0,0.00016438,2]
[337801461,1726125260512,-689.84,0.00016438,2]
[337801462,1726125260534,-506.1106091,0.00016438,2]
[337801463,1726125260557,-500.0,0.00016438,2]
[337801464,1726125260581,-500.0,0.00016438,2]
[337801465,1726125260607,-6947.28,0.00016438,2]
[337801466,1726125260630,-500.0,0.00016438,2]
[337801467,1726125260654,-500.0,0.00016438,2]
[337801468,1726125260678,-547.5,0.00016438,2]
[337801469,1726125260702,-500.0,0.00016438,2]
[337801470,1726125260726,-500.65116787,0.00016438,2]
[337801471,1726125260749,-500.0,0.00016438,2]
[337801472,1726125260772,-500.0,0.00016438,2]
[337801473,1726125260799,-3323.74,0.00016438,2]
[337801474,1726125260822,-501.15282869,0.00016438,2]
[337801475,1726125260845,-500.0,0.00016438,2]
[337801476,1726125260868,-500.0,0.00016438,2]
[337801477,1726125260890,-500.0,0.00016438,2]
[337801478,1726125260914,-640.26,0.00016438,2]
[337801479,1726125260943,-500.0,0.00016438,2]
[337801480,1726125260966,-515.74,0.00016438,2]
[337801481,1726125260992,-538.49,0.00016438,2]
[337801482,1726125261018,-501.66140226,0.00016438,2]
[337801483,1726125261045,-509.25380231,0.00016438,2]
[337801484,1726125261070,-500.0,0.00016438,2]
[337801485,1726125261095,-500.0,0.00016438,2]
[337801486,1726125261120,-500.0,0.00016438,2]
[337801487,1726125261143,-500.0,0.00016438,2]
[337801488,1726125261169,-500.0,0.00016438,2]
[337801489,1726125261192,-500.0,0.00016438,2]
[337801490,1726125261216,-500.0,0.00016438,2]
[337801491,1726125261241,-155.92,0.00016438,2]
[337801492,1726125261266,-500.0,0.00016438,2]
[337801493,1726125261291,-737.57,0.00016438,2]
[337801495,1726125261316,-514.47447241,0.00016438,2]
[337801496,1726125261342,-557.43223872,0.00016438,2]
[337801497,1726125261366,-500.0,0.00016438,2]
[337801498,1726125261390,-509.75329129,0.00016438,2]
[337801499,1726125261415,-500.0,0.00016438,2]
[337801500,1726125261438,-500.0,0.00016438,2]
[337801501,1726125261463,-500.0,0.00016438,2]
[337801502,1726125261488,-538.49739069,0.00016438,2]
[337801504,1726125261510,-500.0,0.00016438,2]
[337801505,1726125261532,-500.0,0.00016438,2]
[337801506,1726125261554,-501.0606497,0.00016438,2]
[337801507,1726125261577,-632.08,0.00016438,2]
[337801508,1726125261599,-500.0,0.00016438,2]
[337801509,1726125261622,-757.34,0.00016438,2]
[337801510,1726125261648,-500.0,0.00016438,2]
[337801511,1726125261673,-500.0,0.00016438,2]
[337801512,1726125261695,-513.15700449,0.00016438,2]
[337801513,1726125261719,-500.0,0.00016438,2]
[337801514,1726125261743,-500.0,0.00016438,2]
[337801515,1726125261771,-500.0,0.00016438,2]
[337801516,1726125261797,-500.0,0.00016438,2]
[337801517,1726125261821,-503.12580693,0.00016438,2]
[337801518,1726125261844,-507.50272562,0.00016438,2]
[337801519,1726125261867,-660.8,0.00016438,2]
[337801520,1726125261890,-500.0,0.00016438,2]
[337801521,1726125261913,-1149.6,0.00016438,2]
[337801522,1726125261935,-500.0,0.00016438,2]
[337801523,1726125261957,-500.0,0.00016438,2]
[337801524,1726125261981,-500.0,0.00016438,2]
[337801525,1726125262005,-500.0,0.00016438,2]
[337801526,1726125262028,-500.0,0.00016438,2]
[337801527,1726125262052,-5757.7,0.00016438,2]
[337801528,1726125262077,-500.0,0.00016438,2]
[337801529,1726125262102,-886.28,0.00016438,2]
[337801530,1726125262273,-500.0,0.00016438,2]
[337801531,1726125262296,-415.6321159,0.00016438,2]
[337801532,1726125262320,-2028.47,0.00016438,2]
[337801533,1726125262342,-500.0,0.00016438,2]
[337801534,1726125262364,-635.05,0.00016438,2]
[337801535,1726125262388,-500.0,0.00016438,2]
[337801536,1726125262411,-500.0,0.00016438,2]
[337801537,1726125262435,-500.0,0.00016438,2]
[337801538,1726125262457,-546.74034391,0.00016438,2]
[337801539,1726125262480,-616.53,0.00016438,2]
[337801540,1726125262503,-669.01,0.00016438,2]
[337801541,1726125262526,-500.0,0.00016438,2]
[337801542,1726125262548,-615.82,0.00016438,2]
[337801543,1726125262571,-500.42230845,0.00016438,2]
[337801544,1726125262592,-500.0,0.00016438,2]
[337801545,1726125262615,-7400.22,0.00016438,2]
[337801546,1726125262638,-500.0,0.00016438,2]
[337801547,1726125262660,-817.82,0.00016438,2]
[337801548,1726125262684,-500.0,0.00016438,2]
[337801549,1726125262712,-500.0,0.00016438,2]
[337801550,1726125262735,-500.0,0.00016438,2]
[337801551,1726125262759,-602.22876829,0.00016438,2]
[337801552,1726125262785,-500.0,0.00016438,2]
[337801553,1726125262807,-500.0,0.00016438,2]
[337801554,1726125262832,-1054.74,0.00016438,2]
[337801555,1726125262854,-504.32377385,0.00016438,2]
[337801556,1726125262879,-500.0,0.00016438,2]
[337801557,1726125262902,-501.24529178,0.00016438,2]
[337801558,1726125262925,-500.0,0.00016438,2]
[337801559,1726125262947,-522.41108899,0.00016438,2]
[337801560,1726125262971,-599.36,0.00016438,2]
[337801561,1726125262996,-25462.5375482,0.00016701,2]
[337801562,1726125263018,-4888.13644326,0.00016702,2]
[337801563,1726125263041,-25462.5375482,0.00016702,2]
[337801564,1726125263064,-576.82770201,0.00016711,2]
[337801565,1726125263090,-500.0,0.00016711,2]
[337801566,1726125263117,-500.0,0.00016711,2]
[337801567,1726125263143,-500.0,0.00016711,2]
[337801568,1726125263167,-179.65114699,0.00016711,2]
[337801569,1726125263192,-500.0,0.00016711,2]
[337801570,1726125263216,-500.0,0.00016711,2]
[337801571,1726125263241,-500.0,0.00016711,2]
[337801572,1726125263269,-500.0,0.00016711,2]
[337801573,1726125263293,-489.90351286,0.00016711,2]
[337801574,1726125263316,-500.0,0.00016711,2]
[337801575,1726125263340,-500.0,0.00016711,2]
[337801576,1726125263364,-500.0,0.00016711,2]
[337801578,1726125263387,-500.0,0.00016711,2]
[337801579,1726125263409,-508.34178673,0.00016711,2]
[337801580,1726125263432,-500.0,0.00016711,2]
[337801581,1726125263455,-500.0,0.00016711,2]
[337801582,1726125263480,-500.0,0.00016711,2]
[337801583,1726125263504,-500.0,0.00016711,2]
[337801584,1726125263529,-500.0,0.00016711,2]
[337801585,1726125263553,-500.0,0.00016711,2]
[337801586,1726125263576,-500.0,0.00016711,2]
[337801587,1726125263600,-500.0,0.00016711,2]
[337801588,1726125263624,-500.0,0.00016711,2]
[337801589,1726125263649,-500.0,0.00016711,2]
[337801590,1726125263675,-500.0,0.00016711,2]
[337801591,1726125263700,-500.0,0.00016711,2]
[337801592,1726125263741,-289.15536169,0.00016711,2]
[337801593,1726125263770,-500.0,0.00016711,2]
[337801594,1726125263796,-500.0,0.00016711,2]
[337801595,1726125263823,-500.0,0.00016711,2]
[337801596,1726125263847,-500.0,0.00016712,2]
[337801597,1726125263871,-500.0,0.00016712,2]
[337801598,1726125263896,-500.0,0.00016712,2]
[337801599,1726125263921,-500.0,0.00016712,2]
[337801600,1726125263946,-500.0,0.00016712,2]
[337801601,1726125263971,-602.94,0.00016712,2]
[337801602,1726125263995,-543.26,0.00016712,2]
[337801603,1726125264019,-500.0,0.00016712,2]
[337801604,1726125264041,-500.0,0.00016712,2]
[337801605,1726125264066,-547.88097233,0.00016712,2]
[337801606,1726125264091,-500.0,0.00016712,2]
[337801607,1726125264114,-255.07732189,0.00016712,2]
[337801608,1726125264139,-500.0,0.00016712,2]
[337801609,1726125264163,-500.0,0.00016712,2]
[337801610,1726125264194,-500.0,0.00016712,2]
[337801611,1726125264216,-500.0,0.00016712,2]
[337801612,1726125264240,-500.0,0.00016712,2]
[337801613,1726125264264,-500.0,0.00016712,2]
[337801614,1726125264289,-303.43200319,0.00016712,2]
[337801615,1726125264313,-500.0,0.00016712,2]
[337801616,1726125264337,-500.0,0.00016712,2]
[337801617,1726125264360,-500.0,0.00016712,2]
[337801618,1726125264384,-801.44,0.00016712,2]
[337801619,1726125264407,-500.0,0.00016712,2]
[337801620,1726125264437,-500.0,0.00016712,2]
[337801621,1726125264461,-500.0,0.00016712,2]
[337801622,1726125264486,-604.26,0.00016712,2]
[337801623,1726125264509,-500.0,0.00016712,2]
[337801624,1726125264533,-624.77,0.00016712,2]
[337801625,1726125264560,-500.0,0.00016712,2]
[337801626,1726125264585,-500.0,0.00016712,2]
[337801627,1726125264609,-500.0,0.00016712,2]
[337801628,1726125264633,-500.71985358,0.00016712,2]
[337801629,1726125264656,-500.0,0.00016712,2]
[337801630,1726125264682,-239.98904952,0.00016712,2]
[337801631,1726125264707,-500.0,0.00016712,2]
[337801632,1726125264733,-500.0,0.00016712,2]
[337801633,1726125264759,-527.43,0.00016712,2]
[337801634,1726125264782,-504.92599367,0.00016712,2]
[337801635,1726125264808,-500.0,0.00016712,2]
[337801636,1726125264832,-500.0,0.00016712,2]
[337801637,1726125264859,-500.0,0.00016712,2]
[337801638,1726125264889,-500.0,0.00016712,2]
[337801639,1726125264914,-500.0,0.00016712,2]
[337801640,1726125264940,-500.0,0.00016712,2]
[337801641,1726125264966,-500.0,0.00016712,2]
[337801642,1726125264990,-764.16,0.00016712,2]
[337801643,1726125265014,-500.0,0.00016712,2]
[337801644,1726125265040,-500.0,0.00016712,2]
[337801645,1726125265066,-500.0,0.00016712,2]
[337801646,1726125265090,-500.0,0.00016712,2]
[337801647,1726125265113,-500.0,0.00016712,2]
[337801648,1726125265141,-500.0,0.00016712,2]
[337801649,1726125265166,-500.0,0.00016712,2]
[337801650,1726125265192,-500.0,0.00016712,2]
[337801651,1726125265215,-500.0,0.00016712,2]
[337801652,1726125265239,-500.0,0.00016712,2]
[337801653,1726125265264,-500.0,0.00016712,2]
[337801654,1726125265291,-689.84,0.00016712,2]
[337801655,1726125265315,-6947.28,0.00016712,2]
[337801656,1726125265340,-500.0,0.00016712,2]
[337801657,1726125265366,-547.5,0.00016712,2]
[337801658,1726125265389,-500.0,0.00016712,2]
[337801659,1726125265415,-3323.74,0.00016712,2]
[337801660,1726125265438,-500.0,0.00016712,2]
[337801661,1726125265650,-640.26,0.00016712,2]
[337801662,1726125265681,-500.0,0.00016712,2]
[337801663,1726125265704,-515.74,0.00016712,2]
[337801664,1726125265733,-538.49,0.00016712,2]
[337801665,1726125265758,-500.0,0.00016712,2]
[337801666,1726125265783,-500.0,0.00016712,2]
[337801667,1726125265808,-737.57,0.00016712,2]
[337801668,1726125265832,-500.0,0.00016712,2]
[337801669,1726125265857,-500.0,0.00016712,2]
[337801670,1726125265881,-500.0,0.00016712,2]
[337801671,1726125265906,-500.0,0.00016712,2]
[337801672,1726125265933,-632.08,0.00016712,2]
[337801673,1726125265957,-757.34,0.00016712,2]
[337801674,1726125265981,-500.0,0.00016712,2]
[337801675,1726125266005,-500.0,0.00016712,2]
[337801676,1726125266029,-500.0,0.00016712,2]
[337801677,1726125266053,-660.8,0.00016712,2]
[337801678,1726125266094,-500.0,0.00016712,2]
[337801679,1726125266123,-1149.6,0.00016712,2]
[337801680,1726125266148,-500.0,0.00016712,2]
[337801681,1726125266173,-500.0,0.00016712,2]
[337801682,1726125266198,-500.0,0.00016712,2]
[337801683,1726125266225,-5757.7,0.00016712,2]
[337801684,1726125266251,-500.0,0.00016712,2]
[337801685,1726125266278,-886.28,0.00016712,2]
[337801686,1726125266306,-2028.47,0.00016712,2]
[337801687,1726125266333,-635.05,0.00016712,2]
[337801688,1726125266359,-500.0,0.00016712,2]
[337801689,1726125266384,-500.0,0.00016712,2]
[337801690,1726125266407,-616.53,0.00016712,2]
[337801691,1726125266432,-669.01,0.00016712,2]
[337801692,1726125266456,-500.0,0.00016712,2]
[337801693,1726125266483,-615.82,0.00016712,2]
[337801694,1726125266508,-7400.22,0.00016712,2]
[337801695,1726125266534,-500.0,0.00016712,2]
[337801696,1726125266560,-817.82,0.00016712,2]
[337801697,1726125266587,-500.0,0.00016712,2]
[337801698,1726125266611,-500.0,0.00016712,2]
[337801699,1726125266635,-224.65760659,0.00016712,2]
[337801700,1726125266659,-500.0,0.00016712,2]
[337801701,1726125266685,-1054.74,0.00016712,2]
[337801702,1726125266717,-315.25,0.00016712,2]
[337801703,1726125266751,-500.0,0.00016712,2]
[337801704,1726125266783,-500.0,0.00016773,2]
[337801705,1726125266808,-500.0,0.00016773,2]
[337801706,1726125266836,-344.94333047,0.00016773,2]
[337801707,1726125266861,-500.0,0.00016773,2]
[337801708,1726125266887,-605.43346296,0.00016787,2]
[337801709,1726125266913,-226.37111531,0.00016787,2]
[337801710,1726125266942,-4888.13644326,0.00016876,2]
[337801711,1726125266969,-25462.5375482,0.00016976,2]
[337801712,1726125266994,-381.73,0.00016986,2]
[337801713,1726125267019,-500.0,0.00016986,2]
[337801714,1726125267043,-500.0,0.00016986,2]
[337801715,1726125267067,-500.0,0.00016986,2]
[337801716,1726125267091,-500.0,0.00016986,2]
[337801717,1726125267114,-200.0,0.00016986,2]
[337801718,1726125267139,-500.0,0.00016986,2]
[337801719,1726125267163,-500.0,0.00016986,2]
[337801720,1726125267188,-500.0,0.00016986,2]
[337801721,1726125267213,-500.0,0.00016986,2]
[337801722,1726125267237,-500.0,0.00016986,2]
[337801723,1726125267263,-500.0,0.00016986,2]
[337801724,1726125267291,-494.60390592,0.00016986,2]
[337801725,1726125267316,-575.57419285,0.00016986,2]
[337801726,1726125267342,-500.0,0.00016986,2]
[337801727,1726125267371,-801.44,0.00016986,2]
[337801728,1726125267394,-606.35607368,0.00016986,2]
[337801729,1726125267417,-500.0,0.00016986,2]
[337801730,1726125267442,-604.26,0.00016986,2]
[337801731,1726125267470,-624.77,0.00016986,2]
[337801732,1726125267493,-500.0,0.00016986,2]
[337801733,1726125267520,-500.0,0.00016986,2]
[337801734,1726125267544,-500.0,0.00016986,2]
[337801735,1726125267569,-500.0,0.00016986,2]
[337801736,1726125267592,-501.08647035,0.00016986,2]
[337801737,1726125267617,-527.43,0.00016986,2]
[337801738,1726125267640,-500.0,0.00016986,2]
[337801739,1726125267666,-302.04366734,0.00016986,2]
[337801740,1726125267698,-500.0,0.00016986,2]
[337801741,1726125267733,-500.0,0.00016986,2]
[337801742,1726125267759,-500.0,0.00016986,2]
[337801743,1726125267784,-764.16,0.00016986,2]
[337801744,1726125267811,-500.0,0.00016986,2]
[337801745,1726125267837,-501.12231346,0.00016986,2]
[337801746,1726125267861,-500.0,0.00016986,2]
[337801747,1726125267886,-500.0,0.00016986,2]
[337801748,1726125267912,-500.0,0.00016986,2]
[337801749,1726125267940,-500.0,0.00016986,2]
[337801750,1726125267965,-500.0,0.00016986,2]
[337801751,1726125267990,-500.0,0.00016986,2]
[337801752,1726125268014,-500.0,0.00016986,2]
[337801753,1726125268039,-689.84,0.00016986,2]
[337801754,1726125268064,-6947.28,0.00016986,2]
[337801755,1726125268087,-283.47,0.00016986,2]
[337801756,1726125268111,-547.5,0.00016986,2]